lending/lending_fUSD_20250114
["ID","MTS","AMOUNT","RATE_DAILY","PERIOD"]
[348954935,1736890257556,-500.0,0.0001164,2]
[348954936,1736890257567,-500.0,0.00011641,2]
[348954937,1736890257577,-150.0,0.00011663,2]
[348954938,1736890257588,-500.0,0.00011915,2]
[348954939,1736890257598,-7613.13039106,0.00011972,2]
[348954940,1736890257609,-810.29032975,0.00011972,2]
[348954941,1736890257619,-13352.59209477,0.00011973,2]
[348954942,1736890257630,-13352.59209477,0.00011973,2]
[348954943,1736890257640,-8562.45314468,0.00011973,2]
[348954944,1736890257650,-810.29032975,0.00011973,2]
[348954945,1736890257660,-2247.5731595,0.00011974,2]
[348954946,1736890257670,-28100.31956365,0.00011974,2]
[348954947,1736890257680,-335.70110065,0.00011974,2]
[348954948,1736890257694,-1911.87205885,0.00011974,2]
[348954949,1736890257705,-2247.5731595,0.00011974,2]
[348954950,1736890257716,-13352.59209477,0.00011974,2]
[348954951,1736890257726,-8562.45314468,0.00011975,2]
[348954952,1736890257737,-50059.03787604,0.00011976,2]
[348954953,1736890257747,-50059.03787604,0.00011976,2]
[348954954,1736890257757,-810.29032975,0.00011976,2]
[348954955,1736890257766,-8562.45314468,0.00011978,2]
[348954956,1736890257776,-13352.59209477,0.00011979,2]
[348954957,1736890257786,-810.29032975,0.00011979,2]
[348954958,1736890257796,-28100.31956365,0.00011981,2]
[348954959,1736890257806,-50059.03787604,0.00011981,2]
[348954960,1736890257816,-50059.03787604,0.00011981,2]
[348954961,1736890257826,-1000.0,0.00011984,2]
[348954962,1736890257837,-28100.31956365,0.00011986,2]
[348954963,1736890257847,-2247.5731595,0.00011988,2]
[348954964,1736890257857,-8562.45314468,0.00011989,2]
[348954965,1736890257867,-810.29032975,0.00011989,2]
[348954966,1736890257877,-50059.03787604,0.0001199,2]
[348954967,1736890257887,-291.6482207,0.00011992,2]
[348954968,1736890257897,-249.6865237,0.00011992,2]
[348954969,1736890257907,-2049.8020306,0.00011992,2]
[348954970,1736890257916,-201.0281169,0.00011992,2]
[348954971,1736890257926,-5720.5281033,0.00011992,2]
[348954972,1736890257936,-396.330525,0.00011992,2]
[348954973,1736890257946,-28100.31956365,0.00011993,2]
[348954974,1736890257959,-8562.45314468,0.00011995,2]
[348954975,1736890257969,-50059.03787604,0.00011997,2]
[348954976,1736890257979,-291.6482207,0.00011998,2]
[348954977,1736890257990,-8562.45314468,0.00011998,2]
[348954978,1736890258001,-291.6482207,0.00011998,2]
[348954979,1736890258011,-587.37,0.00011999,2]
[348954980,1736890258021,-587.37,0.00011999,2]
[348954981,1736890258033,-587.37,0.00011999,2]
[348954982,1736890258043,-587.37,0.00011999,2]
[348954983,1736890258054,-587.55,0.00011999,2]
[348954984,1736890258064,-95018.57617235,0.00011999,2]
[348954985,1736890258073,-166.73794238,0.00012,2]
[348954986,1736890258083,-38488.24095279,0.00012,2]
[348954987,1736890258093,-745.93617905,0.00012,2]
[348954988,1736890258103,-10001.35460132,0.00012,8]
[348954989,1736890258113,-250.0,0.00012,10]
[348954990,1736890258123,-3000.0,0.00012,2]
[348954991,1736890258133,-399.99999,0.00012,2]
[348954992,1736890258143,-1583.0,0.00012,2]
[348954993,1736890258153,-772.26,0.00012036,2]
[348954994,1736890258163,-1965.58847945,0.00012038,2]
[348954995,1736890258175,-150.09140942,0.00012045,2]
[348954996,1736890258185,-245.27525467,0.00012045,2]
[348954997,1736890258195,-500.0,0.00012045,2]
[348954998,1736890258207,-150.0,0.00012045,2]
[348954999,1736890258217,-1182.0,0.00012045,2]
[348955000,1736890258227,-500.0,0.00012045,2]
[348955001,1736890258237,-150.0,0.00012045,2]
[348955002,1736890258248,-150.0,0.00012045,2]
[348955003,1736890258258,-266.88775563,0.00012045,2]
[348955004,1736890258268,-500.0,0.00012045,2]
[348955005,1736890258279,-200.0,0.00012055,2]
[348955006,1736890258288,-9511.56089096,0.00012071,4]
[348955007,1736890258298,-500.0,0.00012072,2]
[348955008,1736890258308,-1182.0,0.00012072,2]
[348955009,1736890258318,-500.0,0.00012072,2]
[348955010,1736890258327,-169.63713041,0.00012072,2]
[348955011,1736890258338,-150.0,0.00012072,2]
[348955012,1736890258347,-921.70682541,0.00012072,2]
[348955013,1736890258357,-500.0,0.000121,2]
[348955014,1736890258367,-1182.0,0.000121,2]
[348955015,1736890258376,-500.0,0.000121,2]
[348955016,1736890258386,-244.7250172,0.000121,2]
[348955017,1736890258396,-500.0,0.00012127,2]
[348955018,1736890258406,-1182.0,0.00012127,2]
[348955019,1736890258415,-500.0,0.00012127,2]
[348955020,1736890258425,-500.0,0.00012155,2]
[348955021,1736890258436,-1182.0,0.00012155,2]
[348955022,1736890258446,-500.0,0.00012155,2]
[348955023,1736890258456,-5000.0,0.00012178,3]
[348955024,1736890258466,-921.88123276,0.00012182,2]
[348955025,1736890258476,-1182.0,0.00012182,2]
[348955026,1736890258485,-500.0,0.00012182,2]
[348955027,1736890258495,-681.65,0.00012188,2]
[348955028,1736890258504,-1939.2,0.00012188,2]
[348955029,1736890258513,-736.38,0.00012188,2]
[348955030,1736890258523,-1496.38,0.00012188,2]
[348955031,1736890258532,-500.0,0.00012188,2]
[348955032,1736890258542,-615.03,0.00012188,2]
[348955033,1736890258552,-583.34,0.00012188,2]
[348955034,1736890258562,-797.29,0.00012188,2]
[348955035,1736890258571,-643.59,0.00012188,2]
[348955036,1736890258581,-616.77,0.00012188,2]
[348955037,1736890258591,-500.0,0.00012188,2]
[348955038,1736890258600,-1304.7,0.00012188,2]
[348955039,1736890258610,-1568.55,0.00012188,2]
[348955040,1736890258619,-2837.69,0.00012188,2]
[348955041,1736890258629,-1661.4,0.00012188,2]
[348955042,1736890258638,-1091.72,0.00012188,2]
[348955043,1736890258648,-841.92,0.00012188,2]
[348955044,1736890258657,-1183.62,0.00012188,2]
[348955045,1736890258666,-696.89,0.00012188,2]
[348955046,1736890258675,-746.54,0.00012188,2]
[348955047,1736890258685,-551.49,0.00012188,2]
[348955048,1736890258695,-1899.41,0.00012188,2]
[348955049,1736890258704,-613.17,0.00012188,2]
[348955050,1736890258716,-1774.01,0.00012188,2]
[348955051,1736890258726,-2804.2,0.00012188,2]
[348955052,1736890258736,-1293.3,0.00012188,2]
[348955053,1736890258746,-1022.59,0.00012188,2]
[348955054,1736890258755,-539.3,0.00012188,2]
[348955055,1736890258765,-753.75,0.00012188,2]
[348955056,1736890258774,-846.39,0.00012188,2]
[348955057,1736890258783,-1036.24,0.00012188,2]
[348955058,1736890258794,-500.0,0.00012188,2]
[348955059,1736890258804,-500.0,0.00012188,2]
[348955060,1736890258813,-1219.8,0.00012188,2]
[348955061,1736890258824,-606.97,0.00012188,2]
[348955062,1736890258834,-801.27,0.00012188,2]
[348955063,1736890258844,-1099.78,0.00012188,2]
[348955064,1736890258854,-666.0,0.00012188,2]
[348955065,1736890258864,-545.53,0.00012189,2]
[348955066,1736890258873,-500.0,0.00012189,2]
[348955067,1736890258883,-601.65,0.00012189,2]
[348955068,1736890258892,-500.0,0.00012189,2]
[348955069,1736890258902,-291.04146733,0.00012189,2]
[348955070,1736890258911,-573.92,0.00012189,2]
[348955071,1736890258921,-500.0,0.00012189,2]
[348955072,1736890258930,-500.0,0.00012189,2]
[348955073,1736890258940,-500.0,0.00012189,2]
[348955074,1736890258950,-789.7,0.00012189,2]
[348955075,1736890258964,-500.0,0.00012189,2]
[348955076,1736890258973,-500.0,0.00012189,2]
[348955077,1736890259053,-500.0,0.00012189,2]
[348955078,1736890259063,-782.23,0.00012189,2]
[348955079,1736890259073,-546.81,0.00012189,2]
[348955080,1736890259082,-1397.89,0.00012189,2]
[348955081,1736890259092,-427.99338472,0.00012189,2]
[348955082,1736890259101,-540.45,0.00012189,2]
[348955083,1736890259111,-500.0,0.00012189,2]
[348955084,1736890259120,-500.0,0.00012189,2]
[348955085,1736890259129,-500.0,0.00012189,2]
[348955086,1736890259139,-500.0,0.00012189,2]
[348955087,1736890259149,-650.59,0.00012189,2]
[348955088,1736890259158,-728.84,0.00012189,2]
[348955089,1736890259167,-500.0,0.00012189,2]
[348955090,1736890259176,-500.0,0.00012189,2]
[348955091,1736890259186,-647.0,0.00012189,2]
[348955092,1736890259195,-500.0,0.00012189,2]
[348955093,1736890259204,-500.0,0.00012189,2]
[348955094,1736890259214,-500.0,0.00012189,2]
[348955095,1736890259224,-500.0,0.00012189,2]
[348955096,1736890259234,-722.57,0.00012189,2]
[348955097,1736890259243,-1069.24,0.00012189,2]
[348955098,1736890259253,-500.0,0.00012189,2]
[348955099,1736890259262,-500.0,0.00012189,2]
[348955100,1736890259271,-605.71,0.00012189,2]
[348955101,1736890259283,-500.0,0.00012189,2]
[348955102,1736890259292,-645.08,0.00012189,2]
[348955103,1736890259301,-500.0,0.00012189,2]
[348955104,1736890259311,-955.39,0.00012189,2]
[348955105,1736890259320,-500.0,0.00012189,2]
[348955106,1736890259329,-2797.35,0.00012189,2]
[348955107,1736890259338,-501.82,0.00012189,2]
[348955108,1736890259347,-500.0,0.00012189,2]
[348955109,1736890259357,-513.55,0.00012189,2]
[348955110,1736890259367,-491.99981743,0.00012189,2]
[348955111,1736890259377,-500.0,0.00012189,2]
[348955112,1736890259386,-1021.47,0.00012189,2]
[348955113,1736890259395,-500.0,0.00012189,2]
[348955114,1736890259403,-577.47,0.00012189,2]
[348955115,1736890259412,-1326.44,0.00012189,2]
[348955116,1736890259422,-773.41,0.00012189,2]
[348955117,1736890259432,-500.0,0.00012189,2]
[348955118,1736890259442,-1466.79,0.00012189,2]
[348955119,1736890259452,-659.39,0.00012189,2]
[348955120,1736890259461,-2026.08,0.00012189,2]
[348955121,1736890259471,-232.78548573,0.00012189,2]
[348955122,1736890259481,-500.0,0.00012189,2]
[348955123,1736890259490,-500.0,0.00012189,2]
[348955124,1736890259500,-500.0,0.00012189,2]
[348955125,1736890259509,-638.02,0.00012189,2]
[348955126,1736890259519,-500.0,0.00012189,2]
[348955127,1736890259528,-609.31,0.00012189,2]
[348955128,1736890259538,-857.65,0.00012189,2]
[348955129,1736890259547,-630.85,0.00012189,2]
[348955130,1736890259556,-500.0,0.00012189,2]
[348955131,1736890259566,-500.0,0.00012189,2]
[348955132,1736890259575,-500.0,0.00012189,2]
[348955133,1736890259585,-500.0,0.00012189,2]
[348955134,1736890259595,-500.0,0.00012189,2]
[348955135,1736890259604,-500.0,0.00012189,2]
[348955136,1736890259614,-1832.64,0.00012189,2]
[348955137,1736890259624,-656.8,0.00012189,2]
[348955138,1736890259633,-229.46477072,0.00012189,2]
[348955139,1736890259642,-604.39,0.00012189,2]
[348955140,1736890259651,-500.0,0.00012189,2]
[348955141,1736890259661,-500.0,0.00012189,2]
[348955142,1736890259670,-635.29,0.00012189,2]
[348955143,1736890259679,-1287.62,0.00012189,2]
[348955144,1736890259689,-1885.69,0.00012189,2]
[348955145,1736890259699,-574.15,0.00012189,2]
[348955146,1736890259708,-534.21,0.00012189,2]
[348955147,1736890259718,-739.32,0.00012189,2]
[348955148,1736890259729,-800.24,0.00012189,2]
[348955149,1736890259738,-855.03,0.00012189,2]
[348955150,1736890259747,-500.0,0.00012189,2]
[348955151,1736890259757,-500.0,0.00012189,2]
[348955152,1736890259768,-2253.21,0.00012189,2]
[348955153,1736890259777,-638.97,0.00012189,2]
[348955154,1736890259787,-555.97,0.00012189,2]
[348955155,1736890259796,-762.68,0.00012189,2]
[348955156,1736890259806,-500.0,0.00012189,2]
[348955157,1736890259815,-781.78,0.00012189,2]
[348955158,1736890259824,-1092.56,0.00012189,2]
[348955159,1736890259834,-500.0,0.00012189,2]
[348955160,1736890259844,-612.29,0.00012189,2]
[348955161,1736890259854,-500.0,0.00012189,2]
[348955162,1736890259864,-528.64,0.00012189,2]
[348955163,1736890259873,-500.0,0.00012189,2]
[348955164,1736890259883,-500.0,0.00012189,2]
[348955165,1736890259893,-1371.44,0.00012189,2]
[348955166,1736890259903,-500.0,0.00012189,2]
[348955167,1736890259913,-500.0,0.00012189,2]
[348955168,1736890259922,-216.29434087,0.00012189,2]
[348955169,1736890259932,-3085.09,0.00012189,2]
[348955170,1736890259941,-500.0,0.00012189,2]
[348955171,1736890259953,-578.25,0.00012189,2]
[348955172,1736890259963,-723.11,0.00012189,2]
[348955173,1736890259972,-319.12,0.00012189,2]
[348955174,1736890259981,-500.0,0.00012189,2]
[348955175,1736890259990,-500.0,0.00012189,2]
[348955176,1736890260001,-1395.98,0.00012189,2]
[348955177,1736890260011,-500.0,0.00012189,2]
[348955178,1736890260021,-522.63,0.00012189,2]
[348955179,1736890260033,-2130.66,0.00012189,2]
[348955180,1736890260044,-1000.0,0.00012189,2]
[348955181,1736890260054,-500.0,0.00012189,2]
[348955182,1736890260064,-1186.83,0.00012189,2]
[348955183,1736890260074,-552.75,0.00012189,2]
[348955184,1736890260083,-784.24,0.00012189,2]
[348955185,1736890260093,-1916.7,0.00012189,2]
[348955186,1736890260103,-2430.31,0.00012189,2]
[348955187,1736890260112,-727.44,0.00012189,2]
[348955188,1736890260122,-500.0,0.00012189,2]
[348955189,1736890260131,-677.42,0.00012189,2]
[348955190,1736890260141,-157.33963664,0.000122,2]
[348955191,1736890260150,-157.33963664,0.000122,2]
[348955192,1736890260159,-157.33963664,0.000122,2]
[348955193,1736890260168,-157.33963664,0.000122,2]
[348955194,1736890260178,-157.33963664,0.000122,2]
[348955195,1736890260187,-157.33963664,0.000122,2]
[348955196,1736890260197,-157.33963664,0.000122,2]
[348955197,1736890260206,-157.33963664,0.000122,2]
[348955198,1736890260216,-157.33963664,0.000122,2]
[348955199,1736890260225,-157.33963664,0.000122,2]
[348955200,1736890260234,-157.33963664,0.000122,2]
[348955201,1736890260244,-157.33963664,0.000122,2]
[348955202,1736890260253,-157.33,0.000122,2]
[348955203,1736890260263,-492.25319434,0.000122,2]
[348955204,1736890260272,-492.25319434,0.000122,2]
[348955205,1736890260281,-492.25319434,0.000122,2]
[348955206,1736890260290,-492.25319434,0.000122,2]
[348955207,1736890260300,-492.25319434,0.000122,2]
[348955208,1736890260310,-492.25319434,0.000122,2]
[348955209,1736890260319,-492.25319434,0.000122,2]
[348955210,1736890260329,-492.25319434,0.000122,2]
[348955211,1736890260340,-492.25319434,0.000122,2]
[348955212,1736890260351,-492.25319434,0.000122,2]
[348955213,1736890260361,-492.25319434,0.000122,2]
[348955214,1736890260370,-492.25319434,0.000122,2]
[348955215,1736890260379,-492.25319434,0.000122,2]
[348955216,1736890260389,-492.25319434,0.000122,2]
[348955217,1736890260399,-492.25319434,0.000122,2]
[348955218,1736890260408,-492.25319434,0.000122,2]
[348955219,1736890260417,-492.25319434,0.000122,2]
[348955220,1736890260427,-492.25319434,0.000122,2]
[348955221,1736890260436,-492.25319434,0.000122,2]
[348955222,1736890260446,-492.25,0.000122,2]
[348955223,1736890260456,-187.84955475,0.000122,2]
[348955224,1736890260465,-1000.0,0.000122,2]
[348955225,1736890260475,-154.63359363,0.000122,2]
[348955226,1736890260485,-153.92585718,0.000122,2]
[348955227,1736890260494,-1728.54321073,0.000122,2]
[348955228,1736890260504,-248.48607,0.000122,2]
[348955229,1736890260514,-1384.6170358,0.000122,2]
[348955230,1736890260524,-1182.0,0.00012209,2]
[348955231,1736890260533,-500.0,0.00012209,2]
[348955232,1736890260542,-80242.0,0.00012219,2]
[348955233,1736890260552,-1182.0,0.00012237,2]
[348955234,1736890260561,-500.0,0.00012237,2]
[348955235,1736890260570,-1182.0,0.00012264,2]
[348955236,1736890260579,-500.0,0.00012264,2]
[348955237,1736890260589,-44097.0,0.00012274,2]
[348955238,1736890260598,-1182.0,0.00012292,2]
[348955239,1736890260607,-251.5793989,0.00012292,2]
[348955240,1736890260616,-2073.4211486,0.00012292,2]
[348955241,1736890260626,-5742.7078569,0.00012292,2]
[348955242,1736890260635,-500.0,0.00012292,2]
[348955243,1736890260644,-500.0,0.00012292,2]
[348955244,1736890260654,-500.0,0.00012292,2]
[348955245,1736890260663,-500.0,0.00012292,2]
[348955246,1736890260673,-500.0,0.00012292,2]
[348955247,1736890260682,-500.0,0.00012292,2]
[348955248,1736890260691,-500.0,0.00012292,2]
[348955249,1736890260701,-500.0,0.00012292,2]
[348955250,1736890260713,-500.0,0.00012292,2]
[348955251,1736890260724,-500.0,0.00012292,2]
[348955252,1736890260734,-500.0,0.00012292,2]
[348955253,1736890260744,-500.0,0.00012292,2]
[348955254,1736890260753,-500.0,0.00012292,2]
[348955255,1736890260763,-500.0,0.00012292,2]
[348955256,1736890260772,-500.0,0.00012292,2]
[348955257,1736890260782,-500.0,0.00012292,2]
[348955258,1736890260792,-500.0,0.00012292,2]
[348955259,1736890260802,-500.0,0.00012292,2]
[348955260,1736890260812,-500.0,0.00012292,2]
[348955261,1736890260821,-500.0,0.00012292,2]
[348955262,1736890260831,-500.0,0.00012292,2]
[348955263,1736890260841,-500.0,0.00012292,2]
[348955264,1736890260850,-500.0,0.00012292,2]
[348955265,1736890260860,-500.0,0.00012292,2]
[348955266,1736890260870,-500.0,0.00012292,2]
[348955267,1736890260881,-500.0,0.00012292,2]
[348955268,1736890260890,-500.0,0.00012292,2]
[348955269,1736890260899,-500.0,0.00012292,2]
[348955270,1736890260910,-397.8671862,0.00012292,2]
[348955271,1736890260920,-500.0,0.00012292,2]
[348955272,1736890260930,-500.0,0.00012292,2]
[348955273,1736890260941,-500.0,0.00012292,2]
[348955274,1736890260952,-500.0,0.00012292,2]
[348955275,1736890260969,-500.0,0.00012292,2]
[348955276,1736890260979,-500.0,0.00012292,2]
[348955277,1736890260990,-500.0,0.00012292,2]
[348955278,1736890261001,-500.0,0.00012292,2]
[348955279,1736890261011,-500.0,0.00012292,2]
[348955280,1736890261021,-500.0,0.00012292,2]
[348955281,1736890261032,-500.0,0.00012292,2]
[348955282,1736890261041,-500.0,0.00012292,2]
[348955283,1736890261052,-500.0,0.00012292,2]
[348955284,1736890261062,-500.0,0.00012292,2]
[348955285,1736890261072,-500.0,0.00012292,2]
[348955286,1736890261081,-500.0,0.00012292,2]
[348955287,1736890261091,-500.0,0.00012292,2]
[348955288,1736890261101,-500.0,0.00012292,2]
[348955289,1736890261110,-500.0,0.00012292,2]
[348955290,1736890261121,-500.0,0.00012292,2]
[348955291,1736890261131,-500.0,0.00012292,2]
[348955292,1736890261141,-500.0,0.00012292,2]
[348955293,1736890261151,-500.0,0.00012292,2]
[348955294,1736890261161,-500.0,0.00012292,2]
[348955295,1736890261171,-500.0,0.00012292,2]
[348955296,1736890261180,-500.0,0.00012292,2]
[348955297,1736890261190,-500.0,0.00012292,2]
[348955298,1736890261199,-500.0,0.00012292,2]
[348955299,1736890261211,-500.0,0.00012292,2]
[348955300,1736890261221,-500.0,0.00012292,2]
[348955301,1736890261231,-500.0,0.00012292,2]
[348955302,1736890261241,-500.0,0.00012292,2]
[348955303,1736890261251,-500.0,0.00012292,2]
[348955304,1736890261262,-500.0,0.00012292,2]
[348955305,1736890261273,-500.0,0.00012292,2]
[348955306,1736890261283,-500.0,0.00012292,2]
[348955307,1736890261293,-500.0,0.00012292,2]
[348955308,1736890261303,-500.0,0.00012292,2]
[348955309,1736890261313,-500.0,0.00012292,2]
[348955310,1736890261323,-500.0,0.00012292,2]
[348955311,1736890261332,-500.0,0.00012292,2]
[348955312,1736890261342,-500.0,0.00012292,2]
[348955313,1736890261352,-500.0,0.00012292,2]
[348955314,1736890261362,-500.0,0.00012292,2]
[348955315,1736890261372,-500.0,0.00012292,2]
[348955316,1736890261381,-500.0,0.00012292,2]
[348955317,1736890261391,-500.0,0.00012292,2]
[348955318,1736890261401,-500.0,0.00012292,2]
[348955319,1736890261412,-500.0,0.00012292,2]
[348955320,1736890261422,-500.0,0.00012292,2]
[348955321,1736890261432,-500.0,0.00012292,2]
[348955322,1736890261442,-500.0,0.00012292,2]
[348955323,1736890261452,-500.0,0.00012292,2]
[348955324,1736890261463,-500.0,0.00012292,2]
[348955325,1736890261473,-500.0,0.00012292,2]
[348955326,1736890261483,-500.0,0.00012292,2]
[348955327,1736890261493,-500.0,0.00012292,2]
[348955328,1736890261503,-150.0,0.00012299,2]
[348955329,1736890261513,-1000.0,0.00012299,2]
[348955330,1736890261522,-581.73880058,0.00012299,2]
[348955331,1736890261533,-3098547.33958538,0.00012299,4]
[348955332,1736890261542,-268548.77242049,0.000123,2]
[348955333,1736890261565,-500.0,0.000123,2]
[348955334,1736890262391,-935.73,0.00010819,2]
[348955335,1736890262401,-935.73,0.00011093,2]
[348955336,1736890262411,-935.73,0.00011367,2]
[348955337,1736890262421,-935.73,0.00011641,2]
[348955338,1736890262431,-1174.0,0.00011663,2]
[348955339,1736890262441,-150.28683774,0.000119,2]
[348955340,1736890262452,-500.0,0.00011914,2]
[348955341,1736890262464,-935.73,0.00011915,2]
[348955342,1736890262475,-500.0,0.00012188,2]
[348955343,1736890262485,-500.0,0.00012189,2]
[348955344,1736890262494,-935.73,0.00012189,2]
[348955345,1736890262504,-500.0,0.00012292,2]
[348955346,1736890262515,-500.0,0.00012292,2]
[348955347,1736890262526,-500.0,0.00012292,2]
[348955348,1736890262537,-500.0,0.00012292,2]
[348955349,1736890262548,-500.0,0.00012292,2]
[348955350,1736890262558,-500.0,0.00012292,2]
[348955351,1736890262569,-500.0,0.00012292,2]
[348955352,1736890262579,-500.0,0.00012292,2]
[348955353,1736890262589,-500.0,0.00012292,2]
[348955354,1736890262599,-500.0,0.00012292,2]
[348955355,1736890262609,-500.0,0.00012292,2]
[348955356,1736890262618,-500.0,0.00012292,2]
[348955357,1736890262629,-500.0,0.00012292,2]
[348955358,1736890262639,-500.0,0.00012292,2]
[348955359,1736890262649,-500.0,0.00012292,2]
[348955360,1736890262659,-155558.36249858,0.000123,2]
[348955361,1736890262672,-5518.20302726,0.000123,2]
[348955362,1736890262684,-3949.3,0.000123,2]
[348955363,1736890262696,-780.60377805,0.000123,2]
[348955364,1736890262708,-1947.7999999,0.000123,2]
[348955365,1736890262722,-468.60930782,0.000123,2]
[348955366,1736890262734,-399490.57444086,0.000123,2]
[348955367,1736890265755,-543.2619752,0.000123,2]
[348955368,1736890265772,-515.89379578,0.000123,2]
[348955369,1736890265800,-4761.6728055,0.000123,2]
[348955381,1736890635364,368.0,8.277e-05,2]
[348955398,1736891432139,-250.0,9.685e-05,2]
[348955399,1736891432150,-245.95,9.688e-05,2]
[348955400,1736891432161,-250.0,9.731e-05,2]
[348955401,1736891432170,-1000.0,9.773e-05,2]
[348955402,1736891432179,-447.24,9.809e-05,2]
[348955403,1736891432188,-150.0,9.996e-05,2]
[348955404,1736891432199,-914.29,9.997e-05,2]
[348955405,1736891432209,-500.0,9.997e-05,2]
[348955406,1736891432218,-1257.12,9.997e-05,2]
[348955407,1736891432228,-1000.0,9.997e-05,2]
[348955408,1736891432238,-840.68,9.997e-05,2]
[348955409,1736891432249,-540.23,9.997e-05,2]
[348955410,1736891432258,-500.0,9.997e-05,2]
[348955411,1736891432267,-1105.15,9.997e-05,2]
[348955412,1736891432277,-500.0,9.997e-05,2]
[348955413,1736891432286,-500.0,9.997e-05,2]
[348955414,1736891432296,-500.0,9.997e-05,2]
[348955415,1736891432305,-590.82,9.997e-05,2]
[348955416,1736891432317,-500.0,9.997e-05,2]
[348955417,1736891432326,-511.08,9.997e-05,2]
[348955418,1736891432336,-500.0,9.997e-05,2]
[348955419,1736891432347,-768.39,9.997e-05,2]
[348955420,1736891432357,-1008.64,9.997e-05,2]
[348955421,1736891432366,-907.53,9.997e-05,2]
[348955422,1736891432377,-2126.01,9.997e-05,2]
[348955423,1736891432387,-4406.64,9.997e-05,2]
[348955424,1736891432396,-700.41,9.997e-05,2]
[348955425,1736891432405,-507.86,9.997e-05,2]
[348955426,1736891432415,-1530.52,9.997e-05,2]
[348955427,1736891432424,-500.0,9.997e-05,2]
[348955428,1736891432433,-633.52,9.997e-05,2]
[348955429,1736891432442,-864.94,9.997e-05,2]
[348955430,1736891432452,-520.29,0.00010003,2]
[348955431,1736891432461,-5706.93653457,0.00010072,4]
[348955432,1736891432470,-500.0,0.00010117,2]
[348955433,1736891432479,-773.77,0.00010137,2]
[348955434,1736891432489,-478.8054,0.00010171,2]
[348955435,1736891432498,-677.37,0.00010269,2]
[348955436,1736891432507,-500.0,0.00010269,2]
[348955437,1736891432518,-594.99,0.00010269,2]
[348955438,1736891432527,-536.29,0.00010269,2]
[348955439,1736891432536,-153.02112741,0.0001027,2]
[348955440,1736891432546,-500.0,0.0001027,2]
[348955441,1736891432555,-500.0,0.0001027,2]
[348955442,1736891432564,-509.07,0.0001027,2]
[348955443,1736891432573,-500.0,0.0001027,2]
[348955444,1736891432582,-500.0,0.0001027,2]
[348955445,1736891432592,-500.0,0.0001027,2]
[348955446,1736891432600,-500.0,0.0001027,2]
[348955447,1736891432610,-500.0,0.0001027,2]
[348955448,1736891432618,-537.48,0.0001027,2]
[348955449,1736891432628,-500.0,0.0001027,2]
[348955450,1736891432637,-500.0,0.0001027,2]
[348955451,1736891432646,-500.0,0.0001027,2]
[348955452,1736891432655,-500.0,0.0001027,2]
[348955453,1736891432664,-671.07,0.0001027,2]
[348955454,1736891432673,-500.0,0.0001027,2]
[348955455,1736891432682,-500.0,0.0001027,2]
[348955456,1736891432691,-708.5,0.0001027,2]
[348955457,1736891432700,-640.19,0.0001027,2]
[348955458,1736891432710,-500.0,0.0001027,2]
[348955459,1736891432719,-500.0,0.0001027,2]
[348955460,1736891432731,-500.0,0.0001027,2]
[348955461,1736891432741,-500.0,0.0001027,2]